[Event "Titled Tuesday Blitz December 13 Early 2022"]
[White "Xu, Yi"]
[Black "Taboas Rodriguez, Daniel"]
[WhiteFideId "8605564"]
[BlackFideId "2208466"]
[WhiteElo "2471"]
[BlackElo "2329"]
[Result "1-0"]
[Round "02"]
[TimeControl "180+1"]
[Date "2022.12.14"]
[WhiteClock "0:00:05"]
[BlackClock "0:00:02"]

1. e4 {[%clk 0:03:00]}  e5 {[%clk 0:02:59]} 2. Nf3 {[%clk 0:03:01]}  Nc6 {[%clk 0:02:59]} 3. Bc4 {[%clk 0:03:01]}  Nf6 {[%clk 0:03:00]} 4. d3 {[%clk 0:03:01]}  Bc5 {[%clk 0:03:00]} 5. O-O {[%clk 0:03:01]}  d6 {[%clk 0:03:01]} 6. c3 {[%clk 0:03:02]}  a6 {[%clk 0:03:01]} 7. a4 {[%clk 0:03:01]}  Ba7 {[%clk 0:03:01]} 8. Nbd2 {[%clk 0:03:01]}  O-O {[%clk 0:03:00]} 9. h3 {[%clk 0:03:00]}  Be6 {[%clk 0:03:01]} 10. Bxe6 {[%clk 0:02:53]}  fxe6 {[%clk 0:03:01]} 11. b4 {[%clk 0:02:51]}  Ne7 {[%clk 0:03:00]} 12. Re1 {[%clk 0:02:51]}  Ng6 {[%clk 0:03:00]} 13. Nf1 {[%clk 0:02:51]}  Nh5 {[%clk 0:02:58]} 14. Ra2 {[%clk 0:02:39]}  Qf6 {[%clk 0:02:44]} 15. Bg5 {[%clk 0:02:23]}  Qf7 {[%clk 0:02:44]} 16. Be3 {[%clk 0:02:21]}  Nhf4 {[%clk 0:02:40]} 17. Bxa7 {[%clk 0:02:15]}  Rxa7 {[%clk 0:02:41]} 18. N1h2 {[%clk 0:01:43]}  Raa8 {[%clk 0:01:50]} 19. h4 {[%clk 0:01:41]}  Nxg2 {[%clk 0:01:40]} 20. Kxg2 {[%clk 0:01:40]}  Nf4+ {[%clk 0:01:40]} 21. Kh1 {[%clk 0:01:36]}  Qh5 {[%clk 0:01:29]} 22. Rg1 {[%clk 0:01:34]}  Rf6 {[%clk 0:01:29]} 23. Rg3 {[%clk 0:01:21]}  Raf8 {[%clk 0:01:29]} 24. Qg1 {[%clk 0:01:20]}  Kh8 {[%clk 0:01:20]} 25. Rd2 {[%clk 0:01:11]}  Ng6 {[%clk 0:01:12]} 26. Rg5 {[%clk 0:00:58]}  Qh6 {[%clk 0:01:11]} 27. Ng4 {[%clk 0:00:54]}  Nxh4 {[%clk 0:00:50]} 28. Nxh6 {[%clk 0:00:44]}  Nxf3 {[%clk 0:00:50]} 29. Qg4 {[%clk 0:00:16]}  Nxg5 {[%clk 0:00:32]} 30. f4 {[%clk 0:00:11]}  Rxh6+ {[%clk 0:00:27]} 31. Rh2 {[%clk 0:00:11]}  Rxf4 {[%clk 0:00:25]} 32. Qxg5 {[%clk 0:00:07]}  Rf1+ {[%clk 0:00:19]} 33. Kg2 {[%clk 0:00:07]}  Rhf6 {[%clk 0:00:20]} 34. Qh4 {[%clk 0:00:04]}  h6 {[%clk 0:00:18]} 35. Rh1 {[%clk 0:00:04]}  R1f4 {[%clk 0:00:17]} 36. Qh5 {[%clk 0:00:04]}  Kh7 {[%clk 0:00:15]} 37. Rg1 {[%clk 0:00:03]}  Rg6+ {[%clk 0:00:11]} 38. Kh1 {[%clk 0:00:03]}  Rgf6 {[%clk 0:00:09]} 39. Qh3 {[%clk 0:00:03]}  Rf3 {[%clk 0:00:08]} 40. Qg4 {[%clk 0:00:04]}  g6 {[%clk 0:00:07]} 41. Qh4 {[%clk 0:00:04]}  h5 {[%clk 0:00:04]} 42. Qg5 {[%clk 0:00:04]}  Rh3+ {[%clk 0:00:01]} 43. Kg2 {[%clk 0:00:04]}  Rhf3 {[%clk 0:00:02]} 44. Kh2 {[%clk 0:00:04]}  Rf2+ {[%clk 0:00:02]} 45. Rg2 {[%clk 0:00:05]}  R2f4 {[%clk 0:00:03]} 46. d4 {[%clk 0:00:05]}  exd4 {[%clk 0:00:02]} 47. cxd4 {[%clk 0:00:04]}  Kg7 {[%clk 0:00:01]} 48. e5 {[%clk 0:00:04]}  dxe5 {[%clk 0:00:02]} 49. dxe5 {[%clk 0:00:05]} 1-0


[Site "https://www.chess.com"]

[Event "Titled Tuesday Blitz December 13 Early 2022"]
[White "Yedidia, Daniel"]
[Black "Moiseenko, Alexander"]
[WhiteFideId "30905907"]
[BlackFideId "14102560"]
[WhiteElo "2556"]
[BlackElo "2577"]
[Result "0-1"]
[Round "02"]
[TimeControl "180+1"]
[Date "2022.12.14"]
[WhiteClock "0:00:08"]
[BlackClock "0:00:16"]

1. d4 {[%clk 0:02:55]}  Nf6 {[%clk 0:02:59]} 2. c4 {[%clk 0:02:55]}  e6 {[%clk 0:02:59]} 3. Nc3 {[%clk 0:02:55]}  Bb4 {[%clk 0:03:00]} 4. e3 {[%clk 0:02:55]}  b6 {[%clk 0:03:00]} 5. Ne2 {[%clk 0:02:55]}  Ne4 {[%clk 0:02:59]} 6. a3 {[%clk 0:02:49]}  Nxc3 {[%clk 0:02:57]} 7. Nxc3 {[%clk 0:02:50]}  Bxc3+ {[%clk 0:02:58]} 8. bxc3 {[%clk 0:02:50]}  Bb7 {[%clk 0:02:58]} 9. Bd3 {[%clk 0:02:47]}  Bxg2 {[%clk 0:02:44]} 10. Rg1 {[%clk 0:02:46]}  Bb7 {[%clk 0:02:43]} 11. Rxg7 {[%clk 0:02:41]}  Qh4 {[%clk 0:02:29]} 12. Qg4 {[%clk 0:02:39]}  Qxg4 {[%clk 0:02:27]} 13. Rxg4 {[%clk 0:02:39]}  Nc6 {[%clk 0:02:27]} 14. e4 {[%clk 0:02:33]}  Na5 {[%clk 0:02:27]} 15. Bg5 {[%clk 0:02:17]}  Rg8 {[%clk 0:02:26]} 16. f3 {[%clk 0:02:05]}  Ba6 {[%clk 0:02:21]} 17. e5 {[%clk 0:01:59]}  h5 {[%clk 0:02:16]} 18. Rg3 {[%clk 0:01:52]}  Bxc4 {[%clk 0:02:16]} 19. Bh7 {[%clk 0:01:52]}  Rg7 {[%clk 0:02:14]} 20. Be4 {[%clk 0:01:53]}  Bd5 {[%clk 0:02:09]} 21. Bxd5 {[%clk 0:01:50]}  exd5 {[%clk 0:02:09]} 22. Kf2 {[%clk 0:01:51]}  Nc4 {[%clk 0:01:55]} 23. Rag1 {[%clk 0:01:41]}  d6 {[%clk 0:01:43]} 24. exd6 {[%clk 0:01:26]}  cxd6 {[%clk 0:01:32]} 25. Re1+ {[%clk 0:01:09]}  Kd7 {[%clk 0:01:32]} 26. Re7+ {[%clk 0:01:09]}  Kc6 {[%clk 0:01:32]} 27. Bc1 {[%clk 0:00:59]}  Rxg3 {[%clk 0:01:29]} 28. hxg3 {[%clk 0:00:58]}  f6 {[%clk 0:01:05]} 29. Rf7 {[%clk 0:00:56]}  Kb5 {[%clk 0:00:44]} 30. Rxf6 {[%clk 0:00:56]}  Ka4 {[%clk 0:00:45]} 31. g4 {[%clk 0:00:51]}  hxg4 {[%clk 0:00:44]} 32. fxg4 {[%clk 0:00:52]}  Nxa3 {[%clk 0:00:43]} 33. Rxd6 {[%clk 0:00:46]}  Nb5 {[%clk 0:00:43]} 34. Rxd5 {[%clk 0:00:41]}  Nxc3 {[%clk 0:00:44]} 35. Re5 {[%clk 0:00:41]}  Kb3 {[%clk 0:00:41]} 36. g5 {[%clk 0:00:34]}  a5 {[%clk 0:00:41]} 37. Bd2 {[%clk 0:00:29]}  b5 {[%clk 0:00:36]} 38. g6 {[%clk 0:00:26]}  a4 {[%clk 0:00:33]} 39. Bxc3 {[%clk 0:00:17]}  Kxc3 {[%clk 0:00:33]} 40. Rxb5 {[%clk 0:00:17]}  a3 {[%clk 0:00:34]} 41. Rb1 {[%clk 0:00:13]}  a2 {[%clk 0:00:28]} 42. Ra1 {[%clk 0:00:09]}  Kb2 {[%clk 0:00:27]} 43. Rxa2+ {[%clk 0:00:09]}  Kxa2 {[%clk 0:00:26]} 44. Ke3 {[%clk 0:00:09]}  Rg8 {[%clk 0:00:19]} 45. d5 {[%clk 0:00:08]}  Kb3 {[%clk 0:00:19]} 46. Kd4 {[%clk 0:00:08]}  Kb4 {[%clk 0:00:16]} 47. Ke5 {[%clk 0:00:07]}  Rxg6 {[%clk 0:00:16]} 48. d6 {[%clk 0:00:08]}  Kc5 {[%clk 0:00:16]} 49. d7 {[%clk 0:00:08]}  Rd6 {[%clk 0:00:16]} 0-1


[Site "https://www.chess.com"]

[Event "Titled Tuesday Blitz December 13 Early 2022"]
[White "Yirik, Volkan"]
[Black "Goryachkina, Aleksandra"]
[WhiteFideId "6300782"]
[BlackFideId "4147103"]
[WhiteElo "1902"]
[BlackElo "2484"]
[Result "0-1"]
[Round "02"]
[TimeControl "180+1"]
[Date "2022.12.14"]
[WhiteClock "0:01:01"]
[BlackClock "0:01:02"]

1. e4 {[%clk 0:02:20]}  c5 {[%clk 0:02:59]} 2. Nc3 {[%clk 0:02:21]}  e6 {[%clk 0:02:59]} 3. Bc4 {[%clk 0:02:20]}  a6 {[%clk 0:02:56]} 4. a4 {[%clk 0:02:20]}  Nc6 {[%clk 0:02:55]} 5. d3 {[%clk 0:02:20]}  Nf6 {[%clk 0:02:53]} 6. f4 {[%clk 0:02:20]}  d5 {[%clk 0:02:51]} 7. exd5 {[%clk 0:02:21]}  exd5 {[%clk 0:02:51]} 8. Ba2 {[%clk 0:02:22]}  Be7 {[%clk 0:02:47]} 9. Nf3 {[%clk 0:02:22]}  O-O {[%clk 0:02:43]} 10. O-O {[%clk 0:02:22]}  h6 {[%clk 0:02:38]} 11. Ne5 {[%clk 0:02:21]}  Nb4 {[%clk 0:02:32]} 12. Bb3 {[%clk 0:02:19]}  Bd6 {[%clk 0:02:25]} 13. Ne2 {[%clk 0:02:19]}  Be6 {[%clk 0:02:19]} 14. c3 {[%clk 0:02:18]}  Nc6 {[%clk 0:02:15]} 15. d4 {[%clk 0:02:18]}  cxd4 {[%clk 0:02:06]} 16. cxd4 {[%clk 0:02:16]}  Bf5 {[%clk 0:02:02]} 17. Ng3 {[%clk 0:02:12]}  Bh7 {[%clk 0:02:01]} 18. Be3 {[%clk 0:02:09]}  Rc8 {[%clk 0:01:58]} 19. Nh5 {[%clk 0:02:08]}  Be4 {[%clk 0:01:35]} 20. Ba2 {[%clk 0:01:54]}  Re8 {[%clk 0:01:31]} 21. Bb1 {[%clk 0:01:54]}  Bxb1 {[%clk 0:01:29]} 22. Rxb1 {[%clk 0:01:52]}  Nb4 {[%clk 0:01:27]} 23. Bd2 {[%clk 0:01:22]}  Nc2 {[%clk 0:01:20]} 24. Nxf6+ {[%clk 0:01:15]}  Qxf6 {[%clk 0:01:20]} 25. Bc1 {[%clk 0:01:13]}  Nxd4 {[%clk 0:01:18]} 26. Kh1 {[%clk 0:01:11]}  Qf5 {[%clk 0:01:09]} 27. Be3 {[%clk 0:01:08]}  Nc2 {[%clk 0:01:07]} 28. Bg1 {[%clk 0:01:05]}  Nb4 {[%clk 0:01:04]} 29. Nd3 {[%clk 0:01:00]}  Qxd3 {[%clk 0:01:02]} 30. Qxd3 {[%clk 0:01:01]}  Nxd3 {[%clk 0:01:02]} 0-1


[Site "https://www.chess.com"]

[Event "Titled Tuesday Blitz December 13 Early 2022"]
[White "Abdrlauf, Elham"]
[Black "Garv Gaur"]
[WhiteFideId "1533533"]
[BlackFideId "45030839"]
[WhiteElo "2454"]
[BlackElo "2056"]
[Result "1-0"]
[Round "03"]
[TimeControl "180+1"]
[Date "2022.12.14"]
[WhiteClock "0:00:13"]
[BlackClock "0:00:04"]

1. e4 {[%clk 0:02:58]}  c6 {[%clk 0:02:59]} 2. d4 {[%clk 0:02:59]}  d5 {[%clk 0:02:59]} 3. Nc3 {[%clk 0:03:00]}  dxe4 {[%clk 0:02:48]} 4. Nxe4 {[%clk 0:03:00]}  Bf5 {[%clk 0:02:47]} 5. Ng3 {[%clk 0:03:00]}  Bg6 {[%clk 0:02:48]} 6. h4 {[%clk 0:03:00]}  h6 {[%clk 0:02:48]} 7. Nf3 {[%clk 0:02:58]}  Nd7 {[%clk 0:02:47]} 8. h5 {[%clk 0:02:58]}  Bh7 {[%clk 0:02:47]} 9. Bd3 {[%clk 0:02:59]}  Bxd3 {[%clk 0:02:47]} 10. Qxd3 {[%clk 0:03:00]}  e6 {[%clk 0:02:48]} 11. Bd2 {[%clk 0:02:57]}  Ngf6 {[%clk 0:02:48]} 12. O-O-O {[%clk 0:02:48]}  Be7 {[%clk 0:02:48]} 13. Qe2 {[%clk 0:02:48]}  c5 {[%clk 0:02:42]} 14. Rhe1 {[%clk 0:02:41]}  O-O {[%clk 0:02:35]} 15. Nf5 {[%clk 0:02:41]}  exf5 {[%clk 0:02:33]} 16. Qxe7 {[%clk 0:02:42]}  Ne4 {[%clk 0:02:27]} 17. Qxd8 {[%clk 0:02:38]}  Rfxd8 {[%clk 0:02:25]} 18. Be3 {[%clk 0:02:28]}  cxd4 {[%clk 0:02:19]} 19. Nxd4 {[%clk 0:02:22]}  f4 {[%clk 0:02:00]} 20. Bxf4 {[%clk 0:02:19]}  Nxf2 {[%clk 0:02:00]} 21. Rd2 {[%clk 0:02:18]}  Ng4 {[%clk 0:01:59]} 22. Nb5 {[%clk 0:01:59]}  a6 {[%clk 0:01:56]} 23. Bc7 {[%clk 0:01:55]}  axb5 {[%clk 0:01:52]} 24. Bxd8 {[%clk 0:01:55]}  Rxd8 {[%clk 0:01:53]} 25. Rd5 {[%clk 0:01:39]}  Ngf6 {[%clk 0:01:51]} 26. Rxb5 {[%clk 0:01:38]}  b6 {[%clk 0:01:52]} 27. a4 {[%clk 0:01:37]}  Rc8 {[%clk 0:01:50]} 28. b4 {[%clk 0:01:29]}  Ra8 {[%clk 0:01:33]} 29. a5 {[%clk 0:01:22]}  bxa5 {[%clk 0:01:33]} 30. Rxa5 {[%clk 0:01:04]}  Rb8 {[%clk 0:01:31]} 31. c3 {[%clk 0:01:03]}  Nb6 {[%clk 0:01:27]} 32. Kc2 {[%clk 0:01:02]}  Nfd5 {[%clk 0:01:23]} 33. Kb3 {[%clk 0:01:00]}  Nf4 {[%clk 0:01:02]} 34. Rb5 {[%clk 0:00:47]}  Nfd5 {[%clk 0:01:00]} 35. c4 {[%clk 0:00:37]}  Nc7 {[%clk 0:01:00]} 36. Ra5 {[%clk 0:00:37]}  Ne6 {[%clk 0:00:58]} 37. Rea1 {[%clk 0:00:32]}  Nd4+ {[%clk 0:00:52]} 38. Kc3 {[%clk 0:00:32]}  Ne2+ {[%clk 0:00:52]} 39. Kd2 {[%clk 0:00:29]}  Nd4 {[%clk 0:00:49]} 40. Kc3 {[%clk 0:00:22]}  Ne2+ {[%clk 0:00:48]} 41. Kd3 {[%clk 0:00:22]}  Nf4+ {[%clk 0:00:46]} 42. Ke4 {[%clk 0:00:22]}  Ne6 {[%clk 0:00:39]} 43. c5 {[%clk 0:00:20]}  Ng5+ {[%clk 0:00:34]} 44. Kf5 {[%clk 0:00:16]}  Nd5 {[%clk 0:00:12]} 45. Ra8 {[%clk 0:00:16]}  Rxa8 {[%clk 0:00:11]} 46. Rxa8+ {[%clk 0:00:16]}  Kh7 {[%clk 0:00:12]} 47. b5 {[%clk 0:00:17]}  Nc7 {[%clk 0:00:08]} 48. b6 {[%clk 0:00:14]}  g6+ {[%clk 0:00:08]} 49. hxg6+ {[%clk 0:00:13]}  fxg6+ {[%clk 0:00:09]} 50. Kg4 {[%clk 0:00:14]}  Nce6 {[%clk 0:00:04]} 51. Ra7+ {[%clk 0:00:13]}  Kg8 {[%clk 0:00:04]} 52. b7 {[%clk 0:00:13]} 1-0


[Site "https://www.chess.com"]

[Event "Titled Tuesday Blitz December 13 Early 2022"]
[White "Agasarov, Benik"]
[Black "Ibarra Jerez, Jose Carlos"]
[WhiteFideId "13314823"]
[BlackFideId "2226332"]
[WhiteElo "2179"]
[BlackElo "2638"]
[Result "1-0"]
[Round "03"]
[TimeControl "180+1"]
[Date "2022.12.13"]
[WhiteClock "0:00:15"]
[BlackClock "0:00:02"]

1. d4 {[%clk 0:03:00]}  Nf6 {[%clk 0:02:59]} 2. c4 {[%clk 0:02:59]}  d6 {[%clk 0:02:53]} 3. Nc3 {[%clk 0:02:58]}  e5 {[%clk 0:02:53]} 4. Nf3 {[%clk 0:02:58]}  e4 {[%clk 0:02:53]} 5. Nd2 {[%clk 0:02:58]}  Qe7 {[%clk 0:02:53]} 6. e3 {[%clk 0:02:53]}  Bf5 {[%clk 0:02:51]} 7. Be2 {[%clk 0:02:49]}  h5 {[%clk 0:02:51]} 8. d5 {[%clk 0:02:29]}  g6 {[%clk 0:02:48]} 9. b4 {[%clk 0:02:26]}  a5 {[%clk 0:02:47]} 10. bxa5 {[%clk 0:02:24]}  Bg7 {[%clk 0:02:44]} 11. Bb2 {[%clk 0:02:21]}  O-O {[%clk 0:02:40]} 12. Nb3 {[%clk 0:02:21]}  Nbd7 {[%clk 0:02:40]} 13. Nb5 {[%clk 0:02:21]}  Ne5 {[%clk 0:02:38]} 14. c5 {[%clk 0:01:31]}  Bg4 {[%clk 0:02:19]} 15. O-O {[%clk 0:01:19]}  Nd3 {[%clk 0:02:14]} 16. cxd6 {[%clk 0:01:10]}  cxd6 {[%clk 0:02:13]} 17. Ba3 {[%clk 0:01:10]}  Bxe2 {[%clk 0:02:07]} 18. Qxe2 {[%clk 0:01:08]}  Qd7 {[%clk 0:02:04]} 19. Nxd6 {[%clk 0:01:05]}  Qa4 {[%clk 0:01:45]} 20. Nxe4 {[%clk 0:00:47]}  Qxe4 {[%clk 0:01:32]} 21. Bxf8 {[%clk 0:00:45]}  Rxf8 {[%clk 0:01:29]} 22. f3 {[%clk 0:00:44]}  Qf5 {[%clk 0:01:11]} 23. e4 {[%clk 0:00:39]}  Nf4 {[%clk 0:01:10]} 24. Qd2 {[%clk 0:00:35]}  Qg5 {[%clk 0:01:08]} 25. g3 {[%clk 0:00:34]}  Nh3+ {[%clk 0:00:58]} 26. Kg2 {[%clk 0:00:33]}  Qxd2+ {[%clk 0:00:53]} 27. Nxd2 {[%clk 0:00:34]}  Ng5 {[%clk 0:00:53]} 28. Rab1 {[%clk 0:00:32]}  Ra8 {[%clk 0:00:45]} 29. h4 {[%clk 0:00:31]}  Ngh7 {[%clk 0:00:42]} 30. Nc4 {[%clk 0:00:31]}  Ra7 {[%clk 0:00:37]} 31. Rb5 {[%clk 0:00:25]}  Nd7 {[%clk 0:00:31]} 32. Rfb1 {[%clk 0:00:24]}  Ne5 {[%clk 0:00:32]} 33. Rxb7 {[%clk 0:00:19]}  Rxb7 {[%clk 0:00:15]} 34. Rxb7 {[%clk 0:00:20]}  Nxc4 {[%clk 0:00:16]} 35. Rb8+ {[%clk 0:00:21]}  Nf8 {[%clk 0:00:15]} 36. a6 {[%clk 0:00:21]}  Bd4 {[%clk 0:00:15]} 37. Rb4 {[%clk 0:00:15]}  Ne3+ {[%clk 0:00:15]} 38. Kf2 {[%clk 0:00:16]}  Bc5 {[%clk 0:00:13]} 39. Rb5 {[%clk 0:00:15]}  Bd4 {[%clk 0:00:12]} 40. Ke2 {[%clk 0:00:15]}  Nc4 {[%clk 0:00:06]} 41. Rb4 {[%clk 0:00:14]}  Ba7 {[%clk 0:00:01]} 42. Rxc4 {[%clk 0:00:15]}  Nd7 {[%clk 0:00:02]} 43. Rc7 {[%clk 0:00:15]} 1-0


[Site "https://www.chess.com"]

[Event "Titled Tuesday Blitz December 13 Early 2022"]
[White "Alahakoon, Isuru"]
[Black "Rodriguez Fontecha, Marcos"]
[WhiteFideId "9900993"]
[BlackFideId "2256576"]
[WhiteElo "2004"]
[BlackElo "2263"]
[Result "0-1"]
[Round "03"]
[TimeControl "180+1"]
[Date "2022.12.14"]
[WhiteClock "0:00:08"]
[BlackClock "0:00:08"]

1. Nf3 {[%clk 0:02:59]}  d5 {[%clk 0:02:59]} 2. e3 {[%clk 0:02:58]}  Nf6 {[%clk 0:02:59]} 3. c4 {[%clk 0:02:58]}  g6 {[%clk 0:02:59]} 4. cxd5 {[%clk 0:02:56]}  Nxd5 {[%clk 0:02:59]} 5. e4 {[%clk 0:02:52]}  Nb6 {[%clk 0:02:56]} 6. d4 {[%clk 0:02:53]}  Bg7 {[%clk 0:02:56]} 7. Nc3 {[%clk 0:02:53]}  c5 {[%clk 0:02:56]} 8. d5 {[%clk 0:02:48]}  e6 {[%clk 0:02:52]} 9. Bb5+ {[%clk 0:02:42]}  Bd7 {[%clk 0:02:50]} 10. dxe6 {[%clk 0:02:42]}  fxe6 {[%clk 0:02:50]} 11. Bg5 {[%clk 0:02:32]}  Bf6 {[%clk 0:02:46]} 12. Bh6 {[%clk 0:02:30]}  Bxc3+ {[%clk 0:02:39]} 13. bxc3 {[%clk 0:02:25]}  Bxb5 {[%clk 0:02:40]} 14. Qb3 {[%clk 0:02:25]}  Bc4 {[%clk 0:02:36]} 15. Qc2 {[%clk 0:02:15]}  Qd3 {[%clk 0:02:33]} 16. Qxd3 {[%clk 0:02:07]}  Bxd3 {[%clk 0:02:34]} 17. Ng5 {[%clk 0:02:05]}  Nc6 {[%clk 0:02:11]} 18. Nxe6 {[%clk 0:01:59]}  Kf7 {[%clk 0:02:04]} 19. Nxc5 {[%clk 0:01:59]}  Bc4 {[%clk 0:01:56]} 20. a4 {[%clk 0:01:51]}  Rhe8 {[%clk 0:01:53]} 21. f3 {[%clk 0:01:51]}  Rad8 {[%clk 0:01:45]} 22. Nxb7 {[%clk 0:01:49]}  Rd3 {[%clk 0:01:44]} 23. a5 {[%clk 0:01:45]}  Nc8 {[%clk 0:01:40]} 24. Kf2 {[%clk 0:01:22]}  Re5 {[%clk 0:01:21]} 25. Rhd1 {[%clk 0:01:01]}  Rb5 {[%clk 0:01:12]} 26. a6 {[%clk 0:00:55]}  Rb2+ {[%clk 0:01:09]} 27. Kg3 {[%clk 0:00:53]}  Bxa6 {[%clk 0:00:59]} 28. Rxd3 {[%clk 0:00:45]}  Bxd3 {[%clk 0:00:57]} 29. Rd1 {[%clk 0:00:46]}  Rxb7 {[%clk 0:00:52]} 30. Rxd3 {[%clk 0:00:44]}  a5 {[%clk 0:00:53]} 31. Rd6 {[%clk 0:00:42]}  N8e7 {[%clk 0:00:51]} 32. Bg5 {[%clk 0:00:40]}  Ra7 {[%clk 0:00:51]} 33. Bc1 {[%clk 0:00:36]}  a4 {[%clk 0:00:50]} 34. Ba3 {[%clk 0:00:36]}  Ne5 {[%clk 0:00:50]} 35. Rd4 {[%clk 0:00:33]}  N7c6 {[%clk 0:00:49]} 36. Rd5 {[%clk 0:00:26]}  Nc4 {[%clk 0:00:48]} 37. Bc1 {[%clk 0:00:17]}  a3 {[%clk 0:00:48]} 38. Bxa3 {[%clk 0:00:14]}  Rxa3 {[%clk 0:00:47]} 39. Rc5 {[%clk 0:00:15]}  N6a5 {[%clk 0:00:47]} 40. Rc7+ {[%clk 0:00:14]}  Kg8 {[%clk 0:00:47]} 41. h4 {[%clk 0:00:13]}  Rxc3 {[%clk 0:00:45]} 42. Kf4 {[%clk 0:00:14]}  Rb3 {[%clk 0:00:39]} 43. g4 {[%clk 0:00:13]}  Rb7 {[%clk 0:00:37]} 44. Rc8+ {[%clk 0:00:13]}  Kf7 {[%clk 0:00:36]} 45. Rc5 {[%clk 0:00:14]}  Re7 {[%clk 0:00:33]} 46. h5 {[%clk 0:00:14]}  Ra7 {[%clk 0:00:27]} 47. hxg6+ {[%clk 0:00:13]}  hxg6 {[%clk 0:00:28]} 48. Kg5 {[%clk 0:00:11]}  Nd2 {[%clk 0:00:24]} 49. e5 {[%clk 0:00:09]}  Nxf3+ {[%clk 0:00:23]} 50. Kf4 {[%clk 0:00:10]}  Nd4 {[%clk 0:00:22]} 51. Rc8 {[%clk 0:00:09]}  Ne6+ {[%clk 0:00:21]} 52. Ke4 {[%clk 0:00:09]}  Nb7 {[%clk 0:00:21]} 53. Kd5 {[%clk 0:00:07]}  Nbc5 {[%clk 0:00:18]} 54. Rc6 {[%clk 0:00:05]}  Rd7+ {[%clk 0:00:18]} 55. Kc4 {[%clk 0:00:05]}  Rd4+ {[%clk 0:00:18]} 56. Kc3 {[%clk 0:00:06]}  Rxg4 {[%clk 0:00:17]} 57. Rc8 {[%clk 0:00:05]}  g5 {[%clk 0:00:15]} 58. Rc6 {[%clk 0:00:04]}  Re4 {[%clk 0:00:15]} 59. Rc8 {[%clk 0:00:03]}  Rxe5 {[%clk 0:00:15]} 60. Rh8 {[%clk 0:00:04]}  g4 {[%clk 0:00:15]} 61. Rh1 {[%clk 0:00:04]}  Rg5 {[%clk 0:00:15]} 62. Rf1+ {[%clk 0:00:05]}  Kg6 {[%clk 0:00:14]} 63. Rg1 {[%clk 0:00:05]}  g3 {[%clk 0:00:15]} 64. Kd2 {[%clk 0:00:06]}  Ne4+ {[%clk 0:00:14]} 65. Ke2 {[%clk 0:00:07]}  g2 {[%clk 0:00:14]} 66. Kf3 {[%clk 0:00:07]}  Nd2+ {[%clk 0:00:13]} 67. Kf2 {[%clk 0:00:06]}  Ne4+ {[%clk 0:00:13]} 68. Kf3 {[%clk 0:00:06]}  Nd2+ {[%clk 0:00:09]} 69. Ke2 {[%clk 0:00:06]}  Nd4+ {[%clk 0:00:07]} 70. Kxd2 {[%clk 0:00:06]}  Nf3+ {[%clk 0:00:07]} 71. Ke2 {[%clk 0:00:07]}  Nxg1+ {[%clk 0:00:08]} 72. Kf2 {[%clk 0:00:08]}  Nh3+ {[%clk 0:00:08]} 0-1


[Site "https://www.chess.com"]

[Event "Titled Tuesday Blitz December 13 Early 2022"]
[White "Albertini, Luca"]
[Black "Perera Alfonso, Rene Humberto"]
[WhiteFideId "847038"]
[BlackFideId "3514722"]
[WhiteElo "2207"]
[BlackElo "2313"]
[Result "0-1"]
[Round "03"]
[TimeControl "180+1"]
[Date "2022.12.14"]
[WhiteClock "0:00:03"]
[BlackClock "0:01:02"]

1. e4 {[%clk 0:03:00]}  c5 {[%clk 0:02:58]} 2. Nf3 {[%clk 0:02:59]}  d6 {[%clk 0:02:53]} 3. Bb5+ {[%clk 0:02:58]}  Nc6 {[%clk 0:02:53]} 4. d4 {[%clk 0:02:58]}  cxd4 {[%clk 0:02:52]} 5. Nxd4 {[%clk 0:02:57]}  Bd7 {[%clk 0:02:51]} 6. Bxc6 {[%clk 0:02:57]}  bxc6 {[%clk 0:02:51]} 7. Nc3 {[%clk 0:02:56]}  e5 {[%clk 0:02:47]} 8. Nb3 {[%clk 0:02:53]}  Be7 {[%clk 0:02:47]} 9. O-O {[%clk 0:02:53]}  Nf6 {[%clk 0:02:46]} 10. f4 {[%clk 0:02:53]}  O-O {[%clk 0:02:45]} 11. f5 {[%clk 0:02:23]}  a5 {[%clk 0:02:36]} 12. g4 {[%clk 0:02:21]}  a4 {[%clk 0:02:35]} 13. Nd2 {[%clk 0:02:20]}  d5 {[%clk 0:02:35]} 14. g5 {[%clk 0:02:18]}  Nxe4 {[%clk 0:02:35]} 15. Ndxe4 {[%clk 0:02:18]}  dxe4 {[%clk 0:02:36]} 16. Nxe4 {[%clk 0:02:16]}  f6 {[%clk 0:02:21]} 17. g6 {[%clk 0:02:03]}  Qb6+ {[%clk 0:02:00]} 18. Kg2 {[%clk 0:01:41]}  Qd4 {[%clk 0:01:58]} 19. Qxd4 {[%clk 0:01:15]}  exd4 {[%clk 0:01:57]} 20. gxh7+ {[%clk 0:01:16]}  Kxh7 {[%clk 0:01:56]} 21. Ng3 {[%clk 0:01:10]}  c5 {[%clk 0:01:55]} 22. Bf4 {[%clk 0:01:10]}  Bc6+ {[%clk 0:01:53]} 23. Kh3 {[%clk 0:01:07]}  Rfe8 {[%clk 0:01:50]} 24. Rfe1 {[%clk 0:01:02]}  Bf8 {[%clk 0:01:50]} 25. Kg4 {[%clk 0:01:01]}  Bd5 {[%clk 0:01:46]} 26. Bc7 {[%clk 0:00:46]}  Rxe1 {[%clk 0:01:43]} 27. Rxe1 {[%clk 0:00:47]}  Bxa2 {[%clk 0:01:43]} 28. Nh5 {[%clk 0:00:32]}  Bf7 {[%clk 0:01:42]} 29. Nf4 {[%clk 0:00:32]}  Rc8 {[%clk 0:01:41]} 30. Ba5 {[%clk 0:00:29]}  Rb8 {[%clk 0:01:40]} 31. Nd3 {[%clk 0:00:15]}  c4 {[%clk 0:01:37]} 32. Nf4 {[%clk 0:00:06]}  Rxb2 {[%clk 0:01:36]} 33. Re4 {[%clk 0:00:07]}  Bc5 {[%clk 0:01:31]} 34. h4 {[%clk 0:00:01]}  Rxc2 {[%clk 0:01:30]} 35. Ne6 {[%clk 0:00:02]}  Bxe6 {[%clk 0:01:22]} 36. fxe6 {[%clk 0:00:03]}  a3 {[%clk 0:01:17]} 37. Bb6 {[%clk 0:00:03]}  a2 {[%clk 0:01:13]} 38. Bxc5 {[%clk 0:00:03]}  a1=Q {[%clk 0:01:11]} 39. e7 {[%clk 0:00:04]}  Qg1+ {[%clk 0:01:08]} 40. Kf5 {[%clk 0:00:04]}  Rf2+ {[%clk 0:01:03]} 41. Ke6 {[%clk 0:00:04]}  Qg4+ {[%clk 0:01:03]} 42. Kf7 {[%clk 0:00:04]}  Qxe4 {[%clk 0:01:01]} 43. e8=Q {[%clk 0:00:04]}  Qg6+ {[%clk 0:01:01]} 44. Kf8 {[%clk 0:00:03]}  Re2 {[%clk 0:01:02]} 0-1


[Site "https://www.chess.com"]